[Event "6th Cattolica Open 2019"]
[Site "Cattolica"]
[Date "2019.06.10"]
[Round "4.11"]
[White "Yankelevich, Lev"]
[Black "Le Goff, Ronan"]
[Result "0-1"]
[ECO "C79"]
[WhiteElo "2484"]
[BlackElo "2229"]
[Annotator "ChessBase"]
[PlyCount "76"]
[EventDate "2019.06.08"]
[EventType "swiss"]
[EventCountry "ITA"]
[SourceTitle "playchess.com"]
[Source "ChessBase"]
[SourceQuality "1"]
[TimeControl "40/5400+30:900+30"]

1. e4 {[%emt 0:00:00]} e5 {[%emt 0:00:00]} 2. Nf3 {[%emt 0:00:00]} Nc6 {[%emt 0:00:00]} 3. Bb5 {[%emt 0:00:00]} a6 {[%emt 0:00:00]} 4. Ba4 {[%emt 0:00:01]} d6 {[%emt 0:00:06]} 5. O-O {[%emt 0:00:14]} Bd7 {[%emt 0:00:49]} 6. d4 {[%emt 0:00:28]} Nf6 {[%emt 0:02:13]} 7. Re1 {[%emt 0:23:36]} Be7 {[%emt 0:02:43]} 8. d5 {[%emt 0:01:08]} Nb8 {[%emt 0:00:33]} 9. c4 {[%emt 0:00:35]} O-O {[%emt 0:04:06]} 10. c5 {[%emt 0:06:34]} Bg4 {[%emt 0:06:00]} 11. c6 {[%emt 0:03:24]} bxc6 {[%emt 0:01:22]} 12. dxc6 {[%emt 0:00:04]} a5 {[%emt 0:18:41]} 13. h3 {[%emt 0:05:33]} Bh5 {[%emt 0:05:08]} 14. Nc3 {[%emt 0:00:39]} Na6 {[%emt 0:00:37]} 15. Be3 {[%emt 0:04:31]} Bg6 {[%emt 0:02:41]} 16. Bg5 {[%emt 0:02:07]} Nc5 {[%emt 0:03:07]} 17. Bxf6 {[%emt 0:00:17]} Bxf6 {[%emt 0:00:32]} 18. a3 {[%emt 0:01:17]} Rb8 {[%emt 0:04:02]} 19. Ra2 {[%emt 0:06:04]} d5 {[%emt 0:06:56]} 20. exd5 {[%emt 0:22:35]} e4 {[%emt 0:02:11]} 21. Nh2 {[%emt 0:00:54]} Rxb2 {[%emt 0:04:36]} 22. Rxb2 {[%emt 0:00:45]} Bxc3 {[%emt 0:00:08]} 23. Rbe2 {[%emt 0:01:34]} Bxe1 {[%emt 0:01:29]} 24. Rxe1 {[%emt 0:00:05]} Nd3 {[%emt 0:01:02]} 25. Rf1 {[%emt 0:00:53]} Qxd5 {[%emt 0:00:34]} 26. Qg4 {[%emt 0:01:08]} Qc4 {[%emt 0:01:27]} 27. Qd1 {[%emt 0:01:01]} Nb2 {[%emt 0:02:23]} 28. Bb3 {[%emt 0:00:06]} Qxc6 {[%emt 0:00:29]} 29. Qd2 {[%emt 0:00:18]} Nd3 {[%emt 0:01:48]} 30. Qxa5 {[%emt 0:00:32]} Ra8 {[%emt 0:01:58]} 31. Qg5 {[%emt 0:00:07]} h6 {[%emt 0:03:10]} 32. Qg4 {[%emt 0:00:49]} Kh7 {[%emt 0:05:01]} 33. a4 {[%emt 0:02:44]} Rb8 {[%emt 0:03:52]} 34. Qd1 {[%emt 0:02:19]} Qc3 {[%emt 0:01:22]} 35. Ba2 {[%emt 0:00:57]} Rb2 {[%emt 0:01:51]} 36. Qa1 {[%emt 0:00:02]} Qd2 {[%emt 0:01:38]} 37. Bxf7 {[%emt 0:01:52]} Bxf7 {[%emt 0:00:20]} 38. Ng4 {[%emt 0:00:04]} h5 {[%emt 0:01:31]} 0-1

[Event "6th Cattolica Open 2019"]
[Site "Cattolica"]
[Date "2019.06.11"]
[Round "5.10"]
[White "Romanishin, Oleg M"]
[Black "Vuelban, Virgilio"]
[Result "1-0"]
[ECO "D76"]
[WhiteElo "2451"]
[BlackElo "2268"]
[Annotator "RC"]
[PlyCount "43"]
[EventDate "2019.06.08"]
[EventType "swiss"]
[EventCountry "ITA"]
[SourceTitle "playchess.com"]
[Source "ChessBase"]
[SourceQuality "1"]
[TimeControl "40/5400+30:900+30"]

1. d4 {[%emt 0:02:34]} Nf6 {[%emt 0:07:01]} 2. Nf3 {[%emt 0:00:09]} g6 {[%emt 0:00:13]} 3. g3 {[%emt 0:00:10]} Bg7 {[%emt 0:00:04]} 4. Bg2 {[%emt 0:00:15]} O-O {[%emt 0:00:07]} 5. c4 {[%emt 0:02:29]} d5 {[%emt 0:00:10]} 6. cxd5 {[%emt 0:00:18]} Nxd5 {[%emt 0:00:04]} 7. O-O {[%emt 0:00:12]} Nb6 {[%emt 0:00:26]} 8. Nc3 {[%emt 0:00:10]} Nc6 {[%emt 0:00:02]} 9. d5 {[%emt 0:02:45]} Na5 {[%emt 0:00:24]} 10. Qc2 {[%emt 0:02:08]} c6 {[%emt 0:04:46]} 11. dxc6 {[%emt 0:00:27]} Nxc6 {[%emt 0:00:05]} 12. Rd1 {[%emt 0:00:08]} Bd7 {[%emt 0:05:39]} 13. Be3 {[%emt 0:05:36]} Nc4 {[%emt 0:02:19]} 14. Bc5 {[%emt 0:25:25]} b6 {[%emt 0:16:00]} 15. Nd4 {[%emt 0:03:27]} Nxd4 {[%emt 0:05:55]} 16. Bxd4 {[%emt 0:00:19]} e5 {[%emt 0:00:29]} 17. Bc5 {[%emt 0:01:21]} Rc8 {[%emt 0:07:12]} 18. Bxf8 {[%emt 0:01:17]} Bxf8 {[%emt 0:00:05]} 19. Rac1 {[%emt 0:05:53]} Qe8 {[%emt 0:01:59]} 20. Bb7 {[%emt 0:04:26]} Nd6 {[%emt 0:03:23]} 21. Bxc8 {[%emt 0:00:41]} Bxc8 {[%emt 0:00:04]} 22. Rxd6 {[%emt 0:01:30]} 1-0

[Event "6th Cattolica Open 2019"]
[Site "Cattolica"]
[Date "2019.06.12"]
[Round "6.2"]
[White "Sonis, Francesco"]
[Black "Rychagov, Andrey"]
[Result "1/2-1/2"]
[ECO "D31"]
[WhiteElo "2494"]
[BlackElo "2520"]
[Annotator "ChessBase"]
[PlyCount "83"]
[EventDate "2019.06.08"]
[EventType "swiss"]
[EventCountry "ITA"]
[SourceTitle "playchess.com"]
[Source "ChessBase"]
[SourceQuality "1"]
[TimeControl "40/5400+30:900+30"]

1. d4 {[%emt 0:00:39]} d5 {[%emt 0:00:00]} 2. c4 {[%emt 0:00:06]} e6 {[%emt 0:00:00]} 3. Nc3 {[%emt 0:00:04]} Be7 {[%emt 0:02:24]} 4. cxd5 {[%emt 0:00:14]} exd5 {[%emt 0:00:03]} 5. Bf4 {[%emt 0:00:07]} c6 {[%emt 0:00:06]} 6. e3 {[%emt 0:00:04]} Bd6 {[%emt 0:00:30]} 7. Bxd6 {[%emt 0:00:32]} Qxd6 {[%emt 0:00:04]} 8. Bd3 {[%emt 0:00:07]} Ne7 {[%emt 0:00:07]} 9. Qf3 {[%emt 0:03:13]} b6 {[%emt 0:03:01]} 10. Nge2 {[%emt 0:03:41]} Ba6 {[%emt 0:00:29]} 11. Bc2 {[%emt 0:00:10]} Bxe2 {[%emt 0:13:36]} 12. Qxe2 {[%emt 0:01:21]} Nd7 {[%emt 0:02:08]} 13. O-O-O {[%emt 0:00:35]} O-O-O {[%emt 0:08:36]} 14. Qf3 {[%emt 0:12:59]} Qf6 {[%emt 0:07:33]} 15. Qg3 {[%emt 0:01:49]} Nf5 {[%emt 0:02:29]} 16. Bxf5 {[%emt 0:01:36]} Qxf5 {[%emt 0:00:03]} 17. f3 {[%emt 0:00:53]} Nf6 {[%emt 0:03:09]} 18. Rhf1 {[%emt 0:01:49]} Qg6 {[%emt 0:06:44]} 19. e4 {[%emt 0:08:31]} Qxg3 {[%emt 0:07:50]} 20. hxg3 {[%emt 0:00:03]} dxe4 {[%emt 0:05:21]} 21. fxe4 {[%emt 0:00:06]} Rd7 {[%emt 0:02:53]} 22. e5 {[%emt 0:05:27]} Ng4 {[%emt 0:01:43]} 23. Rf4 {[%emt 0:02:48]} h5 {[%emt 0:00:24]} 24. Rh1 {[%emt 0:07:14]} Rh6 {[%emt 0:09:35]} 25. Ne4 {[%emt 0:02:05]} Kd8 {[%emt 0:01:56]} 26. Ng5 {[%emt 0:03:38]} Ke8 {[%emt 0:00:32]} 27. Re1 {[%emt 0:03:28]} Re7 {[%emt 0:04:14]} 28. Ne4 {[%emt 0:05:31]} Kd7 {[%emt 0:01:13]} 29. Ref1 {[%emt 0:03:10]} f6 {[%emt 0:01:58]} 30. exf6 {[%emt 0:00:29]} Nxf6 {[%emt 0:00:55]} 31. Nxf6+ {[%emt 0:00:27]} Rxf6 {[%emt 0:00:14]} 32. Rxf6 {[%emt 0:00:07]} gxf6 {[%emt 0:00:03]} 33. Rxf6 {[%emt 0:00:06]} Re2 {[%emt 0:01:07]} 34. Rf5 {[%emt 0:00:32]} Rxg2 {[%emt 0:00:43]} 35. Rxh5 {[%emt 0:00:05]} Rxg3 {[%emt 0:00:21]} 36. Rh7+ {[%emt 0:00:05]} Kd6 {[%emt 0:00:03]} 37. Rxa7 {[%emt 0:00:06]} Rg4 {[%emt 0:00:56]} 38. Ra4 {[%emt 0:00:12]} b5 {[%emt 0:00:35]} 39. Rb4 {[%emt 0:00:12]} Kd5 {[%emt 0:00:05]} 40. Kc2 {[%emt 0:00:00]} Rxd4 {[%emt 0:00:00]} 41. Kc3 {[%emt 0:01:00]} Rd1 {[%emt 0:01:29]} 42. a4 {[%emt 0:00:09]} 1/2-1/2

[Event "6th Cattolica Open 2019"]
[Site "Cattolica"]
[Date "2019.06.12"]
[Round "6.3"]
[White "Vovk, Yuri"]
[Black "Barseghyan, Harutyun"]
[Result "0-1"]
[ECO "C90"]
[WhiteElo "2586"]
[BlackElo "2495"]
[Annotator "ChessBase"]
[PlyCount "84"]
[EventDate "2019.06.08"]
[EventType "swiss"]
[EventCountry "ITA"]
[SourceTitle "playchess.com"]
[Source "ChessBase"]
[SourceQuality "1"]
[TimeControl "40/5400+30:900+30"]

1. e4 {[%emt 0:00:00]} e5 {[%emt 0:00:00]} 2. Nf3 {[%emt 0:00:00]} Nc6 {[%emt 0:00:00]} 3. Bb5 {[%emt 0:00:02]} a6 {[%emt 0:00:00]} 4. Ba4 {[%emt 0:00:04]} Nf6 {[%emt 0:00:00]} 5. O-O {[%emt 0:00:07]} Be7 {[%emt 0:00:02]} 6. Re1 {[%emt 0:00:04]} b5 {[%emt 0:00:04]} 7. Bb3 {[%emt 0:00:05]} d6 {[%emt 0:00:05]} 8. a4 {[%emt 0:00:25]} Bd7 {[%emt 0:01:19]} 9. c3 {[%emt 0:00:08]} O-O {[%emt 0:00:08]} 10. d4 {[%emt 0:00:03]} h6 {[%emt 0:00:24]} 11. Nbd2 {[%emt 0:03:30]} Re8 {[%emt 0:00:14]} 12. d5 {[%emt 0:09:53]} Na5 {[%emt 0:00:28]} 13. Bc2 {[%emt 0:00:16]} c6 {[%emt 0:01:58]} 14. b4 {[%emt 0:02:18]} Nb7 {[%emt 0:00:26]} 15. dxc6 {[%emt 0:06:57]} Bxc6 {[%emt 0:00:19]} 16. c4 {[%emt 0:02:09]} Bf8 {[%emt 0:05:00]} 17. Bb2 {[%emt 0:02:13]} Qd7 {[%emt 0:06:41]} 18. Qe2 {[%emt 0:05:50]} Rab8 {[%emt 0:24:42]} 19. cxb5 {[%emt 0:25:49]} axb5 {[%emt 0:00:03]} 20. a5 {[%emt 0:00:53]} Nd8 {[%emt 0:00:06]} 21. Nf1 {[%emt 0:15:19]} Ba8 {[%emt 0:02:37]} 22. Red1 {[%emt 0:02:28]} Qb7 {[%emt 0:12:45]} 23. Ne3 {[%emt 0:03:46]} Ne6 {[%emt 0:02:19]} 24. Nd5 {[%emt 0:03:19]} Nxd5 {[%emt 0:02:24]} 25. exd5 {[%emt 0:00:06]} Nf4 {[%emt 0:01:58]} 26. Qe4 {[%emt 0:00:26]} g6 {[%emt 0:00:01]} 27. Bb3 {[%emt 0:00:30]} Bg7 {[%emt 0:00:50]} 28. g3 {[%emt 0:03:26]} Qd7 {[%emt 0:03:10]} 29. Ne1 {[%emt 0:03:31]} Nh3+ {[%emt 0:22:57]} 30. Kg2 {[%emt 0:01:23]} Ng5 {[%emt 0:00:01]} 31. Qe2 {[%emt 0:01:15]} Qh3+ {[%emt 0:00:01]} 32. Kg1 {[%emt 0:00:16]} Bb7 {[%emt 0:00:01]} 33. a6 {[%emt 0:06:38]} Bc8 {[%emt 0:00:02]} 34. a7 {[%emt 0:00:06]} Ra8 {[%emt 0:00:02]} 35. Qxb5 {[%emt 0:02:02]} Bg4 {[%emt 0:07:32]} 36. Rdc1 {[%emt 0:01:08]} e4 {[%emt 0:01:16]} 37. Bxg7 {[%emt 0:00:08]} e3 {[%emt 0:00:01]} 38. fxe3 {[%emt 0:01:38]} Rxe3 {[%emt 0:00:27]} 39. Qf1 {[%emt 0:00:41]} Re2 {[%emt 0:04:15]} 40. Qxh3 {[%emt 0:00:00]} Nxh3+ {[%emt 0:00:00]} 41. Kh1 {[%emt 0:00:35]} Rxe1+ {[%emt 0:00:10]} 42. Kg2 {[%emt 0:00:06]} Re2+ {[%emt 0:00:07]} 0-1

[Event "6th Cattolica Open 2019"]
[Site "Cattolica"]
[Date "2019.06.12"]
[Round "6.6"]
[White "Mezentsev, Ivan"]
[Black "Kharitonov, Alexandr"]
[Result "1/2-1/2"]
[ECO "A03"]
[WhiteElo "2281"]
[BlackElo "2547"]
[Annotator "ChessBase"]
[PlyCount "118"]
[EventDate "2019.06.08"]
[EventType "swiss"]
[EventCountry "ITA"]
[SourceTitle "playchess.com"]
[Source "ChessBase"]
[SourceQuality "1"]
[TimeControl "40/5400+30:900+30"]

1. Nf3 {[%emt 0:00:00]} d5 {[%emt 0:00:00]} 2. e3 {[%emt 0:00:00]} c5 {[%emt 0:00:21]} 3. b3 {[%emt 0:01:07]} Nf6 {[%emt 0:03:39]} 4. Bb2 {[%emt 0:00:31]} Nc6 {[%emt 0:02:04]} 5. Bb5 {[%emt 0:00:53]} Bd7 {[%emt 0:00:17]} 6. O-O {[%emt 0:00:49]} e6 {[%emt 0:00:12]} 7. Bxc6 {[%emt 0:01:30]} Bxc6 {[%emt 0:00:24]} 8. Ne5 {[%emt 0:00:46]} Rc8 {[%emt 0:01:24]} 9. d3 {[%emt 0:01:14]} Be7 {[%emt 0:00:35]} 10. Nd2 {[%emt 0:00:24]} O-O {[%emt 0:00:51]} 11. f4 {[%emt 0:01:57]} d4 {[%emt 0:10:30]} 12. Nxc6 {[%emt 0:04:46]} Rxc6 {[%emt 0:00:08]} 13. Nc4 {[%emt 0:08:34]} dxe3 {[%emt 0:09:02]} 14. Qf3 {[%emt 0:03:10]} Nd5 {[%emt 0:01:55]} 15. Nxe3 {[%emt 0:00:16]} Nxe3 {[%emt 0:01:06]} 16. Qxe3 {[%emt 0:00:04]} Bf6 {[%emt 0:00:15]} 17. Bxf6 {[%emt 0:00:34]} Qxf6 {[%emt 0:00:06]} 18. a4 {[%emt 0:00:22]} Qd4 {[%emt 0:04:25]} 19. Rae1 {[%emt 0:00:16]} g6 {[%emt 0:00:37]} 20. Qf2 {[%emt 0:00:09]} Rd8 {[%emt 0:01:07]} 21. Re4 {[%emt 0:00:52]} Qxf2+ {[%emt 0:01:25]} 22. Kxf2 {[%emt 0:00:31]} Rd4 {[%emt 0:03:42]} 23. Rfe1 {[%emt 0:02:32]} h5 {[%emt 0:02:23]} 24. Ke3 {[%emt 0:01:48]} Rcd6 {[%emt 0:02:38]} 25. Kf3 {[%emt 0:01:16]} Kf8 {[%emt 0:01:08]} 26. Re5 {[%emt 0:00:55]} Rc6 {[%emt 0:03:03]} 27. g3 {[%emt 0:01:26]} Rdd6 {[%emt 0:04:56]} 28. h3 {[%emt 0:01:10]} f6 {[%emt 0:00:16]} 29. R5e2 {[%emt 0:00:24]} Kf7 {[%emt 0:00:32]} 30. g4 {[%emt 0:06:35]} Rd5 {[%emt 0:00:05]} 31. Rg1 {[%emt 0:02:42]} Rc8 {[%emt 0:02:42]} 32. Reg2 {[%emt 0:03:28]} hxg4+ {[%emt 0:01:44]} 33. hxg4 {[%emt 0:00:57]} Rh8 {[%emt 0:00:07]} 34. Kg3 {[%emt 0:00:59]} g5 {[%emt 0:02:16]} 35. Rf1 {[%emt 0:02:24]} gxf4+ {[%emt 0:01:41]} 36. Rxf4 {[%emt 0:00:46]} Ke7 {[%emt 0:07:38]} 37. Re2 {[%emt 0:01:44]} Rd4 {[%emt 0:04:23]} 38. Rfe4 {[%emt 0:10:20]} e5 {[%emt 0:02:25]} 39. Re1 {[%emt 0:00:28]} Ke6 {[%emt 0:00:41]} 40. Rxd4 {[%emt 0:01:28]} cxd4 {[%emt 0:00:00]} 41. Rf1 {[%emt 0:16:09]} b6 {[%emt 0:04:29]} 42. Kg2 {[%emt 0:02:45]} a5 {[%emt 0:04:25]} 43. Kg3 {[%emt 0:00:27]} Rh7 {[%emt 0:07:18]} 44. Kg2 {[%emt 0:01:23]} Rh6 {[%emt 0:03:16]} 45. Kg3 {[%emt 0:03:55]} Kd5 {[%emt 0:00:59]} 46. Rf5 {[%emt 0:01:31]} Ke6 {[%emt 0:03:54]} 47. Rf1 {[%emt 0:00:18]} Rh8 {[%emt 0:01:17]} 48. Kg2 {[%emt 0:00:57]} Rg8 {[%emt 0:00:50]} 49. Kg3 {[%emt 0:04:01]} Rc8 {[%emt 0:07:12]} 50. Rf2 {[%emt 0:00:13]} Rh8 {[%emt 0:01:40]} 51. Rf1 {[%emt 0:02:16]} Rh7 {[%emt 0:00:03]} 52. Kg2 {[%emt 0:02:09]} Rc7 {[%emt 0:00:10]} 53. Rf2 {[%emt 0:00:20]} e4 {[%emt 0:00:41]} 54. dxe4 {[%emt 0:07:27]} Rc3 {[%emt 0:00:58]} 55. Kf1 {[%emt 0:06:44]} d3 {[%emt 0:00:31]} 56. cxd3 {[%emt 0:00:16]} Rxd3 {[%emt 0:00:02]} 57. Rb2 {[%emt 0:01:40]} Rd4 {[%emt 0:00:51]} 58. Re2 {[%emt 0:02:18]} Ke5 {[%emt 0:12:41]} 59. Kf2 {[%emt 0:09:34]} Kf4 {[%emt 0:00:30]} 1/2-1/2

[Event "6th Cattolica Open 2019"]
[Site "Cattolica"]
[Date "2019.06.12"]
[Round "6.7"]
[White "Le Goff, Ronan"]
[Black "Arjun Kalyan"]
[Result "0-1"]
[ECO "D11"]
[WhiteElo "2229"]
[BlackElo "2484"]
[Annotator "ChessBase"]
[PlyCount "90"]
[EventDate "2019.06.08"]
[EventType "swiss"]
[EventCountry "ITA"]
[SourceTitle "playchess.com"]
[Source "ChessBase"]
[SourceQuality "1"]
[TimeControl "40/5400+30:900+30"]

1. d4 {[%emt 0:02:20]} d5 {[%emt 0:00:00]} 2. Nf3 {[%emt 0:00:06]} Nf6 {[%emt 0:00:00]} 3. c4 {[%emt 0:00:10]} c6 {[%emt 0:00:00]} 4. Qc2 {[%emt 0:00:08]} dxc4 {[%emt 0:00:29]} 5. e4 {[%emt 0:00:11]} b5 {[%emt 0:01:04]} 6. b3 {[%emt 0:01:29]} cxb3 {[%emt 0:00:12]} 7. axb3 {[%emt 0:00:09]} e6 {[%emt 0:01:28]} 8. Bd2 {[%emt 0:00:06]} a5 {[%emt 0:00:15]} 9. Bd3 {[%emt 0:00:12]} Bb7 {[%emt 0:01:27]} 10. O-O {[%emt 0:00:44]} Be7 {[%emt 0:00:06]} 11. Nc3 {[%emt 0:01:27]} Na6 {[%emt 0:09:25]} 12. e5 {[%emt 0:00:34]} Nb4 {[%emt 0:02:49]} 13. exf6 {[%emt 0:00:24]} Nxc2 {[%emt 0:00:03]} 14. fxe7 {[%emt 0:00:12]} Qxe7 {[%emt 0:00:02]} 15. Bxc2 {[%emt 0:00:15]} c5 {[%emt 0:11:10]} 16. Nxb5 {[%emt 0:00:49]} O-O {[%emt 0:03:07]} 17. Bd3 {[%emt 0:11:28]} cxd4 {[%emt 0:07:27]} 18. Rfc1 {[%emt 0:04:35]} Rfc8 {[%emt 0:08:34]} 19. Rxc8+ {[%emt 0:03:29]} Rxc8 {[%emt 0:00:10]} 20. Rxa5 {[%emt 0:02:16]} Ra8 {[%emt 0:16:34]} 21. Rxa8+ {[%emt 0:04:17]} Bxa8 {[%emt 0:00:13]} 22. Nfxd4 {[%emt 0:09:32]} Qd7 {[%emt 0:06:32]} 23. f4 {[%emt 0:04:30]} g5 {[%emt 0:01:37]} 24. Bf1 {[%emt 0:03:13]} Bc6 {[%emt 0:01:25]} 25. Be3 {[%emt 0:05:02]} gxf4 {[%emt 0:00:07]} 26. Bxf4 {[%emt 0:00:36]} Bxb5 {[%emt 0:03:09]} 27. Nxb5 {[%emt 0:00:31]} Qd1 {[%emt 0:02:16]} 28. b4 {[%emt 0:00:23]} Qe1 {[%emt 0:00:52]} 29. Bg3 {[%emt 0:05:46]} Qxb4 {[%emt 0:00:09]} 30. Bf2 {[%emt 0:03:50]} e5 {[%emt 0:00:46]} 31. Nc7 {[%emt 0:36:46]} Qd2 {[%emt 0:03:22]} 32. Ne8 {[%emt 0:00:00]} Qd8 {[%emt 0:00:24]} 33. Bb5 {[%emt 0:00:00]} Qd1+ {[%emt 0:00:03]} 34. Bf1 {[%emt 0:00:00]} Qd8 {[%emt 0:00:01]} 35. Bb5 {[%emt 0:00:00]} Qd1+ {[%emt 0:09:12]} 36. Bf1 {[%emt 0:00:00]} f5 {[%emt 0:00:13]} 37. h3 {[%emt 0:00:00]} e4 {[%emt 0:01:45]} 38. Be3 {[%emt 0:00:00]} Kf7 {[%emt 0:08:17]} 39. Nc7 {[%emt 0:00:00]} Qb3 {[%emt 0:02:00]} 40. Ba7 {[%emt 0:00:00]} f4 {[%emt 0:00:00]} 41. Nb5 {[%emt 0:00:00]} Qd1 {[%emt 0:05:00]} 42. Nc3 {[%emt 0:00:00]} Qe1 {[%emt 0:00:42]} 43. Ne2 {[%emt 0:00:00]} e3 {[%emt 0:00:14]} 44. Nxf4 {[%emt 0:01:40]} Qf2+ {[%emt 0:00:02]} 45. Kh2 {[%emt 0:00:14]} Qxf4+ {[%emt 0:00:02]} 0-1

[Event "6th Cattolica Open 2019"]
[Site "Cattolica"]
[Date "2019.06.12"]
[Round "6.8"]
[White "Borges, Guilherme Deola"]
[Black "Repka, Christopher"]
[Result "0-1"]
[ECO "E46"]
[WhiteElo "2171"]
[BlackElo "2482"]
[Annotator "ChessBase"]
[PlyCount "70"]
[EventDate "2019.06.08"]
[EventType "swiss"]
[EventCountry "ITA"]
[SourceTitle "playchess.com"]
[Source "ChessBase"]
[SourceQuality "1"]
[TimeControl "40/5400+30:900+30"]

1. d4 {[%emt 0:00:00]} e6 {[%emt 0:08:03]} 2. c4 {[%emt 0:00:00]} Nf6 {[%emt 0:00:21]} 3. Nc3 {[%emt 0:00:16]} Bb4 {[%emt 0:00:07]} 4. e3 {[%emt 0:00:23]} O-O {[%emt 0:00:04]} 5. Nge2 {[%emt 0:00:45]} c6 {[%emt 0:00:05]} 6. a3 {[%emt 0:01:58]} Ba5 {[%emt 0:00:04]} 7. Qc2 {[%emt 0:00:33]} d5 {[%emt 0:00:05]} 8. Ng3 {[%emt 0:00:20]} Nbd7 {[%emt 0:00:14]} 9. Be2 {[%emt 0:01:03]} dxc4 {[%emt 0:02:42]} 10. Bxc4 {[%emt 0:00:16]} e5 {[%emt 0:00:03]} 11. O-O {[%emt 0:05:04]} exd4 {[%emt 0:00:16]} 12. exd4 {[%emt 0:00:09]} Nb6 {[%emt 0:00:05]} 13. Ba2 {[%emt 0:03:21]} Nbd5 {[%emt 0:00:19]} 14. Re1 {[%emt 0:08:39]} Be6 {[%emt 0:03:46]} 15. Bg5 {[%emt 0:11:12]} h6 {[%emt 0:04:40]} 16. Bxf6 {[%emt 0:05:19]} Qxf6 {[%emt 0:00:08]} 17. Nxd5 {[%emt 0:04:48]} Bxd5 {[%emt 0:01:40]} 18. b4 {[%emt 0:07:55]} Bxa2 {[%emt 0:01:18]} 19. Ne4 {[%emt 0:05:02]} Qxd4 {[%emt 0:02:58]} 20. Qxa2 {[%emt 0:00:08]} Bc7 {[%emt 0:01:50]} 21. Rad1 {[%emt 0:05:54]} Qe5 {[%emt 0:01:28]} 22. Ng3 {[%emt 0:02:44]} Rad8 {[%emt 0:00:04]} 23. Rxe5 {[%emt 0:01:38]} Rxd1+ {[%emt 0:00:06]} 24. Nf1 {[%emt 0:00:04]} Bxe5 {[%emt 0:00:05]} 25. Qe2 {[%emt 0:01:18]} Rd5 {[%emt 0:00:03]} 26. g3 {[%emt 0:05:20]} Re8 {[%emt 0:00:32]} 27. Kg2 {[%emt 0:01:44]} Re6 {[%emt 0:00:05]} 28. Qc2 {[%emt 0:01:52]} Bd4 {[%emt 0:00:17]} 29. g4 {[%emt 0:04:45]} h5 {[%emt 0:02:34]} 30. gxh5 {[%emt 0:01:56]} Rxh5 {[%emt 0:02:18]} 31. Ng3 {[%emt 0:00:28]} Rd5 {[%emt 0:00:07]} 32. Nf5 {[%emt 0:03:40]} Bb6 {[%emt 0:00:52]} 33. h3 {[%emt 0:02:54]} Rf6 {[%emt 0:02:48]} 34. Ne3 {[%emt 0:04:21]} Rg5+ {[%emt 0:00:08]} 35. Kh2 {[%emt 0:02:18]} Rf3 {[%emt 0:00:08]} 0-1

[Event "6th Cattolica Open 2019"]
[Site "Cattolica"]
[Date "2019.06.12"]
[Round "6.9"]
[White "Epishin, Vladimir"]
[Black "Souhardo Basak"]
[Result "1-0"]
[ECO "A21"]
[WhiteElo "2564"]
[BlackElo "2104"]
[Annotator "ChessBase"]
[PlyCount "101"]
[EventDate "2019.06.08"]
[EventType "swiss"]
[EventCountry "ITA"]
[SourceTitle "playchess.com"]
[Source "ChessBase"]
[SourceQuality "1"]
[TimeControl "40/5400+30:900+30"]

1. c4 {[%emt 0:00:00]} g6 {[%emt 0:00:00]} 2. Nf3 {[%emt 0:02:17]} Bg7 {[%emt 0:00:00]} 3. Nc3 {[%emt 0:01:26]} e5 {[%emt 0:00:30]} 4. d4 {[%emt 0:01:08]} exd4 {[%emt 0:01:16]} 5. Nxd4 {[%emt 0:00:06]} Ne7 {[%emt 0:01:21]} 6. Bg5 {[%emt 0:02:52]} h6 {[%emt 0:05:03]} 7. Bh4 {[%emt 0:00:59]} O-O {[%emt 0:03:48]} 8. e3 {[%emt 0:03:42]} c6 {[%emt 0:01:09]} 9. Be2 {[%emt 0:01:11]} g5 {[%emt 0:02:41]} 10. Bg3 {[%emt 0:00:21]} d5 {[%emt 0:00:07]} 11. cxd5 {[%emt 0:03:25]} Nxd5 {[%emt 0:00:08]} 12. O-O {[%emt 0:00:44]} Nxc3 {[%emt 0:04:25]} 13. bxc3 {[%emt 1:18:19]} Nd7 {[%emt 0:06:56]} 14. Nf5 {[%emt 0:00:00]} Nb6 {[%emt 0:00:52]} 15. Nxg7 {[%emt 0:00:00]} Qxd1 {[%emt 0:00:08]} 16. Rfxd1 {[%emt 0:00:00]} Kxg7 {[%emt 0:00:06]} 17. a4 {[%emt 0:00:00]} Be6 {[%emt 0:01:05]} 18. Rdb1 {[%emt 0:00:00]} Bc8 {[%emt 0:05:18]} 19. a5 {[%emt 0:00:00]} Nd5 {[%emt 0:00:07]} 20. c4 {[%emt 0:00:00]} Ne7 {[%emt 0:00:41]} 21. e4 {[%emt 0:00:00]} Rd8 {[%emt 0:02:05]} 22. c5 {[%emt 0:00:00]} Rd2 {[%emt 0:00:47]} 23. Kf1 {[%emt 0:00:00]} f6 {[%emt 0:03:26]} 24. Rd1 {[%emt 0:00:00]} Rc2 {[%emt 0:01:33]} 25. Rdc1 {[%emt 0:00:00]} Rb2 {[%emt 0:01:59]} 26. f3 {[%emt 0:00:00]} Ng6 {[%emt 0:01:48]} 27. Rcb1 {[%emt 0:00:00]} Rc2 {[%emt 0:00:27]} 28. Bf2 {[%emt 0:00:00]} Nf4 {[%emt 0:01:48]} 29. Bd1 {[%emt 0:00:00]} Rc3 {[%emt 0:06:55]} 30. Rb3 {[%emt 0:00:00]} Rxb3 {[%emt 0:05:14]} 31. Bxb3 {[%emt 0:00:00]} Bd7 {[%emt 0:01:52]} 32. Rd1 {[%emt 0:00:00]} Rd8 {[%emt 0:01:08]} 33. Rd6 {[%emt 0:00:00]} Kf8 {[%emt 0:03:04]} 34. Bd4 {[%emt 0:00:00]} Ke8 {[%emt 0:00:33]} 35. Bxf6 {[%emt 0:00:00]} Rb8 {[%emt 0:00:03]} 36. Be5 {[%emt 0:00:00]} Rd8 {[%emt 0:00:33]} 37. Rxh6 {[%emt 0:00:00]} Be6 {[%emt 0:00:30]} 38. Rh8+ {[%emt 0:00:00]} Kd7 {[%emt 0:00:05]} 39. Rxd8+ {[%emt 0:00:00]} Kxd8 {[%emt 0:00:02]} 40. Bxf4 {[%emt 0:00:00]} Bxb3 {[%emt 0:00:00]} 41. Bxg5+ {[%emt 0:00:00]} Kd7 {[%emt 0:00:25]} 42. Kf2 {[%emt 0:00:00]} Ke6 {[%emt 0:00:21]} 43. Bf4 {[%emt 0:00:00]} Bc4 {[%emt 0:00:05]} 44. h4 {[%emt 0:00:00]} Kf6 {[%emt 0:00:04]} 45. g4 {[%emt 0:00:00]} Kg6 {[%emt 0:00:10]} 46. h5+ {[%emt 0:00:00]} Kf6 {[%emt 0:00:03]} 47. Kg3 {[%emt 0:00:00]} Be2 {[%emt 0:00:10]} 48. Bd2 {[%emt 0:00:00]} Bd1 {[%emt 0:00:09]} 49. Bc3+ {[%emt 0:00:00]} Kf7 {[%emt 0:00:07]} 50. g5 {[%emt 0:00:00]} Kg8 {[%emt 0:00:05]} 51. g6 {[%emt 0:00:00]} 1-0